[Event "Titled Tuesday Blitz May 23 Late 2023"]
[White "Przybylski, Wojciech"]
[Black "lluiss"]
[WhiteFideId "1117599"]
[WhiteElo "2222"]
[BlackElo "2258"]
[Result "0-1"]
[Round "02"]
[TimeControl "180+2"]
[Date "2023.05.23"]
[WhiteClock "0:00:22"]
[BlackClock "0:00:14"]

1. d4 {[%clk 0:03:00]}  Nf6 {[%clk 0:02:57]} 2. c4 {[%clk 0:03:00]}  g6 {[%clk 0:02:57]} 3. Nc3 {[%clk 0:02:59]}  d5 {[%clk 0:02:57]} 4. g3 {[%clk 0:02:57]}  Bg7 {[%clk 0:02:52]} 5. Bg2 {[%clk 0:02:57]}  c6 {[%clk 0:02:53]} 6. Nf3 {[%clk 0:02:56]}  O-O {[%clk 0:02:53]} 7. O-O {[%clk 0:02:56]}  dxc4 {[%clk 0:02:52]} 8. a4 {[%clk 0:02:54]}  Na6 {[%clk 0:02:44]} 9. e4 {[%clk 0:02:53]}  Nb4 {[%clk 0:02:33]} 10. h3 {[%clk 0:02:48]}  Nd3 {[%clk 0:02:30]} 11. Qc2 {[%clk 0:02:39]}  Nxc1 {[%clk 0:02:27]} 12. Raxc1 {[%clk 0:02:37]}  a6 {[%clk 0:02:23]} 13. Rfe1 {[%clk 0:02:36]}  b5 {[%clk 0:02:22]} 14. Rcd1 {[%clk 0:02:34]}  Qb6 {[%clk 0:02:11]} 15. e5 {[%clk 0:02:25]}  Nd5 {[%clk 0:02:07]} 16. Ng5 {[%clk 0:02:18]}  Nb4 {[%clk 0:01:55]} 17. Qe2 {[%clk 0:02:14]}  Nd3 {[%clk 0:01:54]} 18. Rf1 {[%clk 0:01:58]}  Rb8 {[%clk 0:01:29]} 19. axb5 {[%clk 0:01:45]}  axb5 {[%clk 0:01:25]} 20. d5 {[%clk 0:01:33]}  cxd5 {[%clk 0:01:05]} 21. Nxd5 {[%clk 0:01:33]}  Qa7 {[%clk 0:01:02]} 22. e6 {[%clk 0:01:30]}  f6 {[%clk 0:00:58]} 23. Nf3 {[%clk 0:01:18]}  Re8 {[%clk 0:00:52]} 24. b3 {[%clk 0:01:01]}  Qc5 {[%clk 0:00:51]} 25. Nd2 {[%clk 0:00:58]}  Bb7 {[%clk 0:00:47]} 26. Ne4 {[%clk 0:00:58]}  Qxd5 {[%clk 0:00:39]} 27. Nxf6+ {[%clk 0:00:56]}  Bxf6 {[%clk 0:00:39]} 28. Bxd5 {[%clk 0:00:55]}  Bxd5 {[%clk 0:00:39]} 29. Rxd3 {[%clk 0:00:52]}  cxd3 {[%clk 0:00:37]} 30. Qxd3 {[%clk 0:00:52]}  Bxe6 {[%clk 0:00:32]} 31. Re1 {[%clk 0:00:51]}  Bf7 {[%clk 0:00:31]} 32. h4 {[%clk 0:00:50]}  Red8 {[%clk 0:00:31]} 33. Qe3 {[%clk 0:00:48]}  Rbc8 {[%clk 0:00:29]} 34. b4 {[%clk 0:00:46]}  Rc3 {[%clk 0:00:28]} 35. Qb6 {[%clk 0:00:45]}  Rd2 {[%clk 0:00:26]} 36. h5 {[%clk 0:00:34]}  gxh5 {[%clk 0:00:22]} 37. Qxb5 {[%clk 0:00:31]}  Rcc2 {[%clk 0:00:20]} 38. Qf5 {[%clk 0:00:22]}  Rxf2 {[%clk 0:00:18]} 39. Qxf2 {[%clk 0:00:21]}  Rxf2 {[%clk 0:00:18]} 40. Kxf2 {[%clk 0:00:21]}  h4 {[%clk 0:00:15]} 41. b5 {[%clk 0:00:20]}  hxg3+ {[%clk 0:00:14]} 42. Kxg3 {[%clk 0:00:20]}  Bd4 {[%clk 0:00:09]} 43. Rd1 {[%clk 0:00:19]}  Bc5 {[%clk 0:00:08]} 44. Kg4 {[%clk 0:00:16]}  Kg7 {[%clk 0:00:08]} 45. Rc1 {[%clk 0:00:16]}  Bb6 {[%clk 0:00:06]} 46. Rc6 {[%clk 0:00:15]}  Bd4 {[%clk 0:00:06]} 47. Rc7 {[%clk 0:00:14]}  h5+ {[%clk 0:00:05]} 48. Kf4 {[%clk 0:00:13]}  Kf6 {[%clk 0:00:04]} 49. b6 {[%clk 0:00:12]}  Be5+ {[%clk 0:00:03]} 50. Ke4 {[%clk 0:00:12]}  Bxc7 {[%clk 0:00:04]} 51. bxc7 {[%clk 0:00:12]}  Be6 {[%clk 0:00:05]} 52. Kd4 {[%clk 0:00:12]}  Bc8 {[%clk 0:00:05]} 53. Kd5 {[%clk 0:00:12]}  h4 {[%clk 0:00:06]} 54. Ke4 {[%clk 0:00:12]}  h3 {[%clk 0:00:06]} 55. Kf3 {[%clk 0:00:12]}  Ke6 {[%clk 0:00:05]} 56. Kg3 {[%clk 0:00:12]}  Kd6 {[%clk 0:00:06]} 57. Kh2 {[%clk 0:00:12]}  Kxc7 {[%clk 0:00:07]} 58. Kg3 {[%clk 0:00:12]}  Kd6 {[%clk 0:00:08]} 59. Kf2 {[%clk 0:00:13]}  Ke6 {[%clk 0:00:08]} 60. Kf3 {[%clk 0:00:14]}  Kf6 {[%clk 0:00:09]} 61. Kf4 {[%clk 0:00:14]}  e5+ {[%clk 0:00:09]} 62. Kg3 {[%clk 0:00:15]}  Kf5 {[%clk 0:00:09]} 63. Kf3 {[%clk 0:00:16]}  Kg5 {[%clk 0:00:09]} 64. Kf2 {[%clk 0:00:17]}  e4 {[%clk 0:00:09]} 65. Kg3 {[%clk 0:00:18]}  Kf5 {[%clk 0:00:09]} 66. Kf2 {[%clk 0:00:18]}  Ke5 {[%clk 0:00:10]} 67. Ke3 {[%clk 0:00:18]}  Be6 {[%clk 0:00:11]} 68. Kf2 {[%clk 0:00:19]}  Bd5 {[%clk 0:00:11]} 69. Kg3 {[%clk 0:00:19]}  Kd4 {[%clk 0:00:11]} 70. Kxh3 {[%clk 0:00:20]}  e3 {[%clk 0:00:12]} 71. Kg3 {[%clk 0:00:20]}  Kd3 {[%clk 0:00:13]} 72. Kh3 {[%clk 0:00:20]}  e2 {[%clk 0:00:14]} 73. Kh2 {[%clk 0:00:20]}  Kd2 {[%clk 0:00:14]} 74. Kg3 {[%clk 0:00:20]}  e1=Q+ {[%clk 0:00:15]} 75. Kf4 {[%clk 0:00:21]}  Qe3+ {[%clk 0:00:14]} 76. Kf5 {[%clk 0:00:22]}  Qe4+ {[%clk 0:00:14]} 77. Kg5 {[%clk 0:00:22]}  Kd3 {[%clk 0:00:14]} 78. Kf6 {[%clk 0:00:22]}  Kd4 {[%clk 0:00:14]} 0-1


[Site "https://www.chess.com"]

[Event "Titled Tuesday Blitz May 23 Late 2023"]
[White "Kiselev, Pavel"]
[Black "Urbina Perez, Juan Antonio"]
[WhiteFideId "4191102"]
[BlackFideId "2217368"]
[WhiteElo "2145"]
[BlackElo "2197"]
[Result "0-1"]
[Round "02"]
[TimeControl "180+2"]
[Date "2023.05.23"]
[WhiteClock "0:00:00"]
[BlackClock "0:00:18"]

1. Nf3 {[%clk 0:03:00]}  Nf6 {[%clk 0:02:56]} 2. g3 {[%clk 0:03:01]}  d5 {[%clk 0:02:56]} 3. Bg2 {[%clk 0:03:01]}  e6 {[%clk 0:02:56]} 4. O-O {[%clk 0:03:02]}  Be7 {[%clk 0:02:57]} 5. d4 {[%clk 0:03:03]}  O-O {[%clk 0:02:55]} 6. b3 {[%clk 0:03:03]}  b6 {[%clk 0:02:53]} 7. Bb2 {[%clk 0:03:04]}  Bb7 {[%clk 0:02:53]} 8. Ne5 {[%clk 0:03:03]}  Nbd7 {[%clk 0:02:53]} 9. c4 {[%clk 0:03:04]}  Qc8 {[%clk 0:02:38]} 10. Nd2 {[%clk 0:03:01]}  Nxe5 {[%clk 0:02:29]} 11. dxe5 {[%clk 0:03:00]}  Nd7 {[%clk 0:02:30]} 12. e4 {[%clk 0:02:56]}  dxc4 {[%clk 0:02:28]} 13. Nxc4 {[%clk 0:02:56]}  Rd8 {[%clk 0:02:26]} 14. Qe2 {[%clk 0:02:53]}  Ba6 {[%clk 0:02:24]} 15. Rfd1 {[%clk 0:02:32]}  Nc5 {[%clk 0:02:17]} 16. Rxd8+ {[%clk 0:02:18]}  Qxd8 {[%clk 0:02:18]} 17. Rd1 {[%clk 0:02:17]}  Qe8 {[%clk 0:02:15]} 18. Qd2 {[%clk 0:02:16]}  Rd8 {[%clk 0:02:13]} 19. Qc2 {[%clk 0:02:14]}  Rxd1+ {[%clk 0:02:09]} 20. Qxd1 {[%clk 0:02:15]}  Bxc4 {[%clk 0:02:08]} 21. bxc4 {[%clk 0:02:15]}  Qd7 {[%clk 0:02:09]} 22. Qe2 {[%clk 0:02:12]}  Qd3 {[%clk 0:02:04]} 23. Qxd3 {[%clk 0:02:08]}  Nxd3 {[%clk 0:02:05]} 24. Bc3 {[%clk 0:02:09]}  Bc5 {[%clk 0:02:05]} 25. Kf1 {[%clk 0:02:08]}  Nxf2 {[%clk 0:02:00]} 26. Ke2 {[%clk 0:02:04]}  a5 {[%clk 0:01:48]} 27. a4 {[%clk 0:01:59]}  Kf8 {[%clk 0:01:46]} 28. h3 {[%clk 0:01:52]}  Ke7 {[%clk 0:01:39]} 29. Be1 {[%clk 0:01:52]}  Nxh3 {[%clk 0:01:24]} 30. Bxh3 {[%clk 0:01:51]}  g6 {[%clk 0:01:15]} 31. Bd2 {[%clk 0:01:50]}  Bd4 {[%clk 0:01:15]} 32. Kd3 {[%clk 0:01:50]}  Bxe5 {[%clk 0:01:13]} 33. Bf4 {[%clk 0:01:51]}  Bxf4 {[%clk 0:01:06]} 34. gxf4 {[%clk 0:01:52]}  c5 {[%clk 0:01:04]} 35. e5 {[%clk 0:01:49]}  Kf8 {[%clk 0:01:00]} 36. Ke4 {[%clk 0:01:49]}  Kg7 {[%clk 0:01:00]} 37. Kf3 {[%clk 0:01:48]}  h6 {[%clk 0:01:00]} 38. Kg4 {[%clk 0:01:48]}  Kh7 {[%clk 0:01:00]} 39. Kh4 {[%clk 0:01:48]}  Kg7 {[%clk 0:01:00]} 40. Bg2 {[%clk 0:01:48]}  Kh7 {[%clk 0:00:59]} 41. Kg4 {[%clk 0:01:38]}  Kg7 {[%clk 0:00:59]} 42. Kf3 {[%clk 0:01:38]}  Kh7 {[%clk 0:00:58]} 43. Ke4 {[%clk 0:01:38]}  Kg7 {[%clk 0:00:59]} 44. Bh3 {[%clk 0:01:33]}  Kh7 {[%clk 0:00:59]} 45. Ke3 {[%clk 0:01:10]}  Kg7 {[%clk 0:00:59]} 46. Bg2 {[%clk 0:01:10]}  Kh7 {[%clk 0:00:59]} 47. Bc6 {[%clk 0:01:11]}  Kg7 {[%clk 0:00:58]} 48. Ke4 {[%clk 0:01:10]}  Kh7 {[%clk 0:00:57]} 49. Bd7 {[%clk 0:01:10]}  Kg7 {[%clk 0:00:56]} 50. Be8 {[%clk 0:01:10]}  Kf8 {[%clk 0:00:56]} 51. Bb5 {[%clk 0:01:10]}  Kg7 {[%clk 0:00:56]} 52. Kf3 {[%clk 0:01:10]}  Kf8 {[%clk 0:00:56]} 53. Kg4 {[%clk 0:01:11]}  Kg7 {[%clk 0:00:56]} 54. f5 {[%clk 0:01:10]}  gxf5+ {[%clk 0:00:55]} 55. Kf4 {[%clk 0:01:11]}  f6 {[%clk 0:00:54]} 56. Bd7 {[%clk 0:01:06]}  Kf7 {[%clk 0:00:53]} 57. Bc8 {[%clk 0:01:04]}  h5 {[%clk 0:00:53]} 58. Bb7 {[%clk 0:01:03]}  h4 {[%clk 0:00:52]} 59. Bg2 {[%clk 0:01:02]}  Kg6 {[%clk 0:00:51]} 60. Bh3 {[%clk 0:00:58]}  Kf7 {[%clk 0:00:48]} 61. Bf1 {[%clk 0:00:45]}  Kg6 {[%clk 0:00:47]} 62. Bg2 {[%clk 0:00:46]}  Kf7 {[%clk 0:00:47]} 63. Bh3 {[%clk 0:00:46]}  Kg6 {[%clk 0:00:47]} 64. Bg2 {[%clk 0:00:25]}  Kf7 {[%clk 0:00:35]} 65. Bc6 {[%clk 0:00:25]}  h3 {[%clk 0:00:31]} 66. exf6 {[%clk 0:00:20]}  Kxf6 {[%clk 0:00:32]} 67. Kg3 {[%clk 0:00:20]}  Ke5 {[%clk 0:00:32]} 68. Kxh3 {[%clk 0:00:20]}  Kd6 {[%clk 0:00:29]} 69. Bb7 {[%clk 0:00:17]}  Ke5 {[%clk 0:00:28]} 70. Kg3 {[%clk 0:00:18]}  Kd4 {[%clk 0:00:28]} 71. Ba6 {[%clk 0:00:17]}  e5 {[%clk 0:00:28]} 72. Kf3 {[%clk 0:00:18]}  e4+ {[%clk 0:00:28]} 73. Ke2 {[%clk 0:00:16]}  f4 {[%clk 0:00:28]} 74. Bb7 {[%clk 0:00:11]}  f3+ {[%clk 0:00:24]} 75. Kf2 {[%clk 0:00:11]}  Kd3 {[%clk 0:00:24]} 76. Bd5 {[%clk 0:00:10]}  e3+ {[%clk 0:00:24]} 77. Ke1 {[%clk 0:00:08]}  f2+ {[%clk 0:00:21]} 78. Kf1 {[%clk 0:00:08]}  Kd2 {[%clk 0:00:19]} 79. Bf3 {[%clk 0:00:08]}  Kc3 {[%clk 0:00:20]} 80. Be2 {[%clk 0:00:05]}  Kb4 {[%clk 0:00:19]} 81. Bd1 {[%clk 0:00:03]}  Kxc4 {[%clk 0:00:19]} 82. Ke2 {[%clk 0:00:03]}  Kd4 {[%clk 0:00:19]} 83. Bc2 {[%clk 0:00:02]}  c4 {[%clk 0:00:19]} 84. Bg6 {[%clk 0:00:02]}  Kc3 {[%clk 0:00:18]} 85. Bf5 {[%clk 0:00:03]}  Kb2 {[%clk 0:00:19]} 86. Be4 {[%clk 0:00:03]}  c3 {[%clk 0:00:19]} 87. Kxe3 {[%clk 0:00:00]}  f1=Q {[%clk 0:00:18]} 0-1


[Site "https://www.chess.com"]

[Event "Titled Tuesday Blitz May 23 Late 2023"]
[White "Bilan, Danila"]
[Black "Parizek, Vojtech"]
[WhiteFideId "24161918"]
[BlackFideId "360996"]
[WhiteElo "2182"]
[BlackElo "2115"]
[Result "1-0"]
[Round "02"]
[TimeControl "180+2"]
[Date "2023.05.23"]
[WhiteClock "0:00:09"]
[BlackClock "0:00:00"]

1. d4 {[%clk 0:03:00]}  d5 {[%clk 0:02:59]} 2. Nf3 {[%clk 0:03:00]}  Nf6 {[%clk 0:02:58]} 3. c4 {[%clk 0:03:00]}  c6 {[%clk 0:02:58]} 4. Nc3 {[%clk 0:02:58]}  e6 {[%clk 0:02:58]} 5. Bg5 {[%clk 0:02:56]}  Nbd7 {[%clk 0:02:56]} 6. cxd5 {[%clk 0:02:56]}  exd5 {[%clk 0:02:49]} 7. e3 {[%clk 0:02:56]}  Be7 {[%clk 0:02:49]} 8. Bd3 {[%clk 0:02:56]}  O-O {[%clk 0:02:48]} 9. Qc2 {[%clk 0:02:57]}  Re8 {[%clk 0:02:46]} 10. O-O {[%clk 0:02:55]}  Nf8 {[%clk 0:02:47]} 11. Rab1 {[%clk 0:02:55]}  Ng6 {[%clk 0:02:20]} 12. b4 {[%clk 0:02:50]}  Ne4 {[%clk 0:01:56]} 13. Bxe7 {[%clk 0:02:46]}  Qxe7 {[%clk 0:01:54]} 14. b5 {[%clk 0:02:37]}  Bg4 {[%clk 0:01:15]} 15. Nd2 {[%clk 0:02:31]}  Rac8 {[%clk 0:01:08]} 16. bxc6 {[%clk 0:02:21]}  Rxc6 {[%clk 0:00:58]} 17. Ndxe4 {[%clk 0:01:51]}  dxe4 {[%clk 0:00:57]} 18. Bb5 {[%clk 0:01:51]}  Bf3 {[%clk 0:00:38]} 19. gxf3 {[%clk 0:01:22]}  Nh4 {[%clk 0:00:21]} 20. Kh1 {[%clk 0:00:59]}  Rh6 {[%clk 0:00:15]} 21. Qxe4 {[%clk 0:00:49]}  Qxe4 {[%clk 0:00:15]} 22. fxe4 {[%clk 0:00:40]}  Nf3 {[%clk 0:00:16]} 23. Kg2 {[%clk 0:00:40]}  Nh4+ {[%clk 0:00:11]} 24. Kg3 {[%clk 0:00:25]}  Ree6 {[%clk 0:00:11]} 25. f4 {[%clk 0:00:20]}  Reg6+ {[%clk 0:00:09]} 26. Kf2 {[%clk 0:00:20]}  Rg2+ {[%clk 0:00:09]} 27. Ke1 {[%clk 0:00:20]}  Rc2 {[%clk 0:00:08]} 28. Ne2 {[%clk 0:00:12]}  Ng2+ {[%clk 0:00:07]} 29. Kf2 {[%clk 0:00:12]}  Rxh2 {[%clk 0:00:07]} 30. Kg3 {[%clk 0:00:10]}  Nxe3 {[%clk 0:00:01]} 31. Kxh2 {[%clk 0:00:10]}  Nxf1+ {[%clk 0:00:02]} 32. Rxf1 {[%clk 0:00:10]}  Rb2 {[%clk 0:00:02]} 33. Bd3 {[%clk 0:00:10]}  Rd2 {[%clk 0:00:00]} 34. Bc4 {[%clk 0:00:09]} 1-0


[Site "https://www.chess.com"]

[Event "Titled Tuesday Blitz May 23 Late 2023"]
[White "Coelho, Ramyres Santana"]
[Black "Papayan, Oleg"]
[WhiteFideId "2120690"]
[BlackFideId "4193911"]
[WhiteElo "1888"]
[BlackElo "2171"]
[Result "0-1"]
[Round "02"]
[TimeControl "180+2"]
[Date "2023.05.23"]
[WhiteClock "0:00:00"]
[BlackClock "0:00:37"]

1. e4 {[%clk 0:02:48]}  e5 {[%clk 0:03:00]} 2. Nf3 {[%clk 0:02:46]}  Nc6 {[%clk 0:03:00]} 3. d4 {[%clk 0:02:44]}  exd4 {[%clk 0:03:01]} 4. Bc4 {[%clk 0:02:35]}  Nf6 {[%clk 0:03:01]} 5. e5 {[%clk 0:02:35]}  d5 {[%clk 0:03:01]} 6. Bb5 {[%clk 0:02:36]}  Ne4 {[%clk 0:03:01]} 7. Nxd4 {[%clk 0:02:36]}  Bc5 {[%clk 0:03:02]} 8. Nxc6 {[%clk 0:02:36]}  Bxf2+ {[%clk 0:03:02]} 9. Kf1 {[%clk 0:02:36]}  bxc6 {[%clk 0:03:02]} 10. Bxc6+ {[%clk 0:02:37]}  Bd7 {[%clk 0:03:03]} 11. Qxd5 {[%clk 0:02:27]}  O-O {[%clk 0:02:35]} 12. Qxe4 {[%clk 0:01:46]}  Bxc6 {[%clk 0:02:30]} 13. Qxc6 {[%clk 0:01:47]}  Qd1+ {[%clk 0:02:29]} 14. Kxf2 {[%clk 0:01:47]}  Qxh1 {[%clk 0:02:30]} 15. Nc3 {[%clk 0:01:48]}  Rae8 {[%clk 0:02:10]} 16. Qd5 {[%clk 0:01:37]}  Re6 {[%clk 0:01:36]} 17. g3 {[%clk 0:01:20]}  Qxh2+ {[%clk 0:01:33]} 18. Qg2 {[%clk 0:01:20]}  Qh5 {[%clk 0:01:08]} 19. Bf4 {[%clk 0:01:16]}  g5 {[%clk 0:01:08]} 20. Rh1 {[%clk 0:01:15]}  Qg6 {[%clk 0:01:09]} 21. Be3 {[%clk 0:00:58]}  Qxc2+ {[%clk 0:01:09]} 22. Ne2 {[%clk 0:00:55]}  Rxe5 {[%clk 0:01:04]} 23. Qh3 {[%clk 0:00:41]}  Rfe8 {[%clk 0:00:59]} 24. Qh5 {[%clk 0:00:30]}  Qf5+ {[%clk 0:00:37]} 25. Nf4 {[%clk 0:00:00]}  Rxe3 {[%clk 0:00:37]} 0-1


[Site "https://www.chess.com"]

[Event "Titled Tuesday Blitz May 23 Late 2023"]
[White "Kielinkei"]
[Black "Kovacevic, Radmila"]
[BlackFideId "933171"]
[WhiteElo "2445"]
[BlackElo "2194"]
[Result "1-0"]
[Round "02"]
[TimeControl "180+2"]
[Date "2023.05.23"]
[WhiteClock "0:00:14"]
[BlackClock "0:00:09"]

1. d4 {[%clk 0:03:00]}  e5 {[%clk 0:02:59]} 2. dxe5 {[%clk 0:03:00]}  Nc6 {[%clk 0:03:00]} 3. Nf3 {[%clk 0:03:00]}  Qe7 {[%clk 0:03:00]} 4. Bf4 {[%clk 0:02:55]}  Qb4+ {[%clk 0:02:58]} 5. Bd2 {[%clk 0:02:50]}  Qxb2 {[%clk 0:02:58]} 6. Nc3 {[%clk 0:02:22]}  Bb4 {[%clk 0:02:55]} 7. Rb1 {[%clk 0:02:12]}  Qxc3 {[%clk 0:02:55]} 8. Bxc3 {[%clk 0:02:09]}  Bxc3+ {[%clk 0:02:56]} 9. Nd2 {[%clk 0:02:09]}  Bxe5 {[%clk 0:02:56]} 10. e3 {[%clk 0:02:05]}  Nf6 {[%clk 0:02:55]} 11. Bd3 {[%clk 0:02:01]}  O-O {[%clk 0:02:55]} 12. O-O {[%clk 0:02:01]}  d5 {[%clk 0:02:50]} 13. h3 {[%clk 0:01:56]}  Bc3 {[%clk 0:02:49]} 14. Nf3 {[%clk 0:01:53]}  h6 {[%clk 0:02:46]} 15. Qe2 {[%clk 0:01:48]}  a6 {[%clk 0:02:39]} 16. Rb3 {[%clk 0:01:46]}  Ba5 {[%clk 0:02:38]} 17. c4 {[%clk 0:01:41]}  dxc4 {[%clk 0:02:26]} 18. Bxc4 {[%clk 0:01:42]}  b5 {[%clk 0:02:26]} 19. Bd3 {[%clk 0:01:40]}  Bb6 {[%clk 0:02:20]} 20. Rc1 {[%clk 0:01:38]}  Na5 {[%clk 0:02:10]} 21. Rb2 {[%clk 0:01:39]}  Re8 {[%clk 0:02:08]} 22. Qc2 {[%clk 0:01:32]}  Be6 {[%clk 0:01:59]} 23. Nd4 {[%clk 0:01:23]}  Bd5 {[%clk 0:01:53]} 24. Nb3 {[%clk 0:01:04]}  Nc4 {[%clk 0:01:48]} 25. Bxc4 {[%clk 0:01:04]}  Bxc4 {[%clk 0:01:46]} 26. Nd2 {[%clk 0:01:02]}  Bd5 {[%clk 0:01:46]} 27. a4 {[%clk 0:00:54]}  c6 {[%clk 0:01:37]} 28. axb5 {[%clk 0:00:46]}  axb5 {[%clk 0:01:38]} 29. Nb3 {[%clk 0:00:45]}  Be4 {[%clk 0:01:30]} 30. Qe2 {[%clk 0:00:41]}  Ra3 {[%clk 0:01:22]} 31. Nc5 {[%clk 0:00:37]}  Bd5 {[%clk 0:01:21]} 32. Qc2 {[%clk 0:00:29]}  Ne4 {[%clk 0:01:10]} 33. Nxe4 {[%clk 0:00:26]}  Bxe4 {[%clk 0:01:11]} 34. Qd2 {[%clk 0:00:26]}  Bd5 {[%clk 0:01:03]} 35. Rd1 {[%clk 0:00:25]}  Ba5 {[%clk 0:01:01]} 36. Qe2 {[%clk 0:00:24]}  Bc3 {[%clk 0:00:58]} 37. Rc2 {[%clk 0:00:19]}  Be4 {[%clk 0:00:52]} 38. Rcc1 {[%clk 0:00:16]}  b4 {[%clk 0:00:51]} 39. Qc4 {[%clk 0:00:13]}  Bd5 {[%clk 0:00:48]} 40. Qc5 {[%clk 0:00:12]}  Rea8 {[%clk 0:00:44]} 41. Rxd5 {[%clk 0:00:10]}  cxd5 {[%clk 0:00:45]} 42. Qxd5 {[%clk 0:00:11]}  Ra1 {[%clk 0:00:45]} 43. Rxa1 {[%clk 0:00:11]}  Rxa1+ {[%clk 0:00:46]} 44. Kh2 {[%clk 0:00:12]}  Rf1 {[%clk 0:00:45]} 45. Qd8+ {[%clk 0:00:11]}  Kh7 {[%clk 0:00:44]} 46. Qd3+ {[%clk 0:00:12]}  g6 {[%clk 0:00:43]} 47. Qxf1 {[%clk 0:00:13]}  b3 {[%clk 0:00:42]} 48. Qd3 {[%clk 0:00:13]}  b2 {[%clk 0:00:42]} 49. Kg3 {[%clk 0:00:12]}  Be5+ {[%clk 0:00:38]} 50. Kf3 {[%clk 0:00:12]}  h5 {[%clk 0:00:36]} 51. e4 {[%clk 0:00:12]}  Kg7 {[%clk 0:00:33]} 52. g3 {[%clk 0:00:12]}  Bf6 {[%clk 0:00:30]} 53. Ke3 {[%clk 0:00:12]}  Bg5+ {[%clk 0:00:27]} 54. f4 {[%clk 0:00:12]}  Bf6 {[%clk 0:00:23]} 55. e5 {[%clk 0:00:12]}  Be7 {[%clk 0:00:21]} 56. Qc2 {[%clk 0:00:13]}  Ba3 {[%clk 0:00:20]} 57. Qb3 {[%clk 0:00:12]}  h4 {[%clk 0:00:19]} 58. g4 {[%clk 0:00:12]}  g5 {[%clk 0:00:15]} 59. f5 {[%clk 0:00:11]}  Bc5+ {[%clk 0:00:14]} 60. Ke4 {[%clk 0:00:11]}  Ba3 {[%clk 0:00:13]} 61. Kd5 {[%clk 0:00:10]}  Kf8 {[%clk 0:00:12]} 62. Kc6 {[%clk 0:00:10]}  Ke8 {[%clk 0:00:12]} 63. Kb5 {[%clk 0:00:11]}  Ke7 {[%clk 0:00:12]} 64. Ka4 {[%clk 0:00:11]}  Bc5 {[%clk 0:00:10]} 65. Qxb2 {[%clk 0:00:11]}  f6 {[%clk 0:00:09]} 66. Qb7+ {[%clk 0:00:12]}  Ke8 {[%clk 0:00:09]} 67. e6 {[%clk 0:00:12]}  Be7 {[%clk 0:00:09]} 68. Qd7+ {[%clk 0:00:12]}  Kf8 {[%clk 0:00:09]} 69. Qc8+ {[%clk 0:00:13]}  Kg7 {[%clk 0:00:10]} 70. Qe8 {[%clk 0:00:14]}  Bf8 {[%clk 0:00:09]} 71. Qf7+ {[%clk 0:00:14]}  Kh6 {[%clk 0:00:08]} 72. Qxf8+ {[%clk 0:00:15]}  Kh7 {[%clk 0:00:09]} 73. Qf7+ {[%clk 0:00:14]} 1-0


[Site "https://www.chess.com"]

[Event "Titled Tuesday Blitz May 23 Late 2023"]
[White "Cardozo Munar, Carlos Eduardo"]
[Black "Pires, Marcos Vinicius Torsani"]
[WhiteFideId "4409477"]
[BlackFideId "2118939"]
[WhiteElo "2067"]
[BlackElo "2273"]
[Result "1/2-1/2"]
[Round "02"]
[TimeControl "180+2"]
[Date "2023.05.23"]
[WhiteClock "0:00:22"]
[BlackClock "0:00:17"]

1. d4 {[%clk 0:03:00]}  Nf6 {[%clk 0:02:59]} 2. Bg5 {[%clk 0:02:58]}  g6 {[%clk 0:02:54]} 3. Bxf6 {[%clk 0:02:57]}  exf6 {[%clk 0:02:55]} 4. e3 {[%clk 0:02:52]}  Bg7 {[%clk 0:02:55]} 5. Nd2 {[%clk 0:02:50]}  O-O {[%clk 0:02:56]} 6. g3 {[%clk 0:02:50]}  c6 {[%clk 0:02:54]} 7. Bg2 {[%clk 0:02:50]}  d5 {[%clk 0:02:54]} 8. Ne2 {[%clk 0:02:51]}  Re8 {[%clk 0:02:53]} 9. O-O {[%clk 0:02:51]}  Be6 {[%clk 0:02:52]} 10. c4 {[%clk 0:02:52]}  dxc4 {[%clk 0:02:52]} 11. a4 {[%clk 0:02:49]}  a5 {[%clk 0:02:42]} 12. Qc2 {[%clk 0:02:48]}  Nd7 {[%clk 0:02:22]} 13. Nxc4 {[%clk 0:02:47]}  Nb6 {[%clk 0:02:22]} 14. b3 {[%clk 0:02:41]}  Nd5 {[%clk 0:02:16]} 15. Rac1 {[%clk 0:02:18]}  Nb4 {[%clk 0:02:15]} 16. Qb1 {[%clk 0:02:18]}  f5 {[%clk 0:02:07]} 17. Nf4 {[%clk 0:02:17]}  Bd5 {[%clk 0:02:03]} 18. Nxd5 {[%clk 0:01:57]}  Nxd5 {[%clk 0:02:02]} 19. Rfd1 {[%clk 0:01:49]}  Nb4 {[%clk 0:01:59]} 20. Rd2 {[%clk 0:01:32]}  h5 {[%clk 0:01:57]} 21. Rcd1 {[%clk 0:01:27]}  Qc7 {[%clk 0:01:57]} 22. d5 {[%clk 0:01:04]}  cxd5 {[%clk 0:01:44]} 23. Bxd5 {[%clk 0:01:04]}  Bc3 {[%clk 0:01:30]} 24. Bf3 {[%clk 0:00:51]}  Bxd2 {[%clk 0:01:20]} 25. Rxd2 {[%clk 0:00:52]}  Rad8 {[%clk 0:01:20]} 26. Qd1 {[%clk 0:00:46]}  Rxd2 {[%clk 0:01:18]} 27. Qxd2 {[%clk 0:00:47]}  Rd8 {[%clk 0:01:19]} 28. Qc3 {[%clk 0:00:45]}  b6 {[%clk 0:01:14]} 29. Qf6 {[%clk 0:00:42]}  Nd5 {[%clk 0:01:02]} 30. Bxd5 {[%clk 0:00:21]}  Rxd5 {[%clk 0:01:03]} 31. Qxb6 {[%clk 0:00:21]}  Qxb6 {[%clk 0:01:00]} 32. Nxb6 {[%clk 0:00:22]}  Rd3 {[%clk 0:00:58]} 33. Nc4 {[%clk 0:00:23]}  Rd5 {[%clk 0:00:56]} 34. Kg2 {[%clk 0:00:19]}  Kf8 {[%clk 0:00:56]} 35. Kf3 {[%clk 0:00:19]}  Ke7 {[%clk 0:00:55]} 36. Ke2 {[%clk 0:00:19]}  Ke6 {[%clk 0:00:53]} 37. h4 {[%clk 0:00:20]}  Ke7 {[%clk 0:00:49]} 38. Ke1 {[%clk 0:00:18]}  Kd8 {[%clk 0:00:49]} 39. Ke2 {[%clk 0:00:18]}  Kc7 {[%clk 0:00:49]} 40. f3 {[%clk 0:00:18]}  Kb7 {[%clk 0:00:42]} 41. e4 {[%clk 0:00:19]}  fxe4 {[%clk 0:00:41]} 42. fxe4 {[%clk 0:00:20]}  Rc5 {[%clk 0:00:39]} 43. Ke3 {[%clk 0:00:20]}  Kc6 {[%clk 0:00:38]} 44. Kd4 {[%clk 0:00:21]}  g5 {[%clk 0:00:30]} 45. Ne5+ {[%clk 0:00:21]}  Kd6 {[%clk 0:00:18]} 46. Nxf7+ {[%clk 0:00:21]}  Kc6 {[%clk 0:00:18]} 47. Nxg5 {[%clk 0:00:22]}  Rc1 {[%clk 0:00:17]} 48. e5 {[%clk 0:00:22]}  Kd7 {[%clk 0:00:16]} 49. e6+ {[%clk 0:00:22]}  Ke7 {[%clk 0:00:15]} 50. Kd5 {[%clk 0:00:21]}  Rd1+ {[%clk 0:00:15]} 51. Kc4 {[%clk 0:00:21]}  Rg1 {[%clk 0:00:14]} 52. b4 {[%clk 0:00:21]}  axb4 {[%clk 0:00:13]} 53. Kxb4 {[%clk 0:00:21]}  Rxg3 {[%clk 0:00:14]} 54. a5 {[%clk 0:00:22]}  Rg4+ {[%clk 0:00:15]} 55. Kb5 {[%clk 0:00:21]}  Rxh4 {[%clk 0:00:16]} 56. a6 {[%clk 0:00:21]}  Rh1 {[%clk 0:00:16]} 57. a7 {[%clk 0:00:21]}  Rb1+ {[%clk 0:00:16]} 58. Ka6 {[%clk 0:00:21]}  Ra1+ {[%clk 0:00:17]} 59. Kb7 {[%clk 0:00:21]}  h4 {[%clk 0:00:16]} 60. a8=Q {[%clk 0:00:21]}  Rxa8 {[%clk 0:00:16]} 61. Kxa8 {[%clk 0:00:21]}  h3 {[%clk 0:00:16]} 62. Nxh3 {[%clk 0:00:22]}  Kxe6 {[%clk 0:00:17]} 1/2-1/2


[Site "https://www.chess.com"]